[Event "*** Titled Tuesday Blitz"]
[Site "Chess.com"]
[Date "2021.03.30"]
[Round "11"]
[White "noblerone"]
[Black "TioCridineno"]
[Result "1/2-1/2"]
[WhiteElo "2389"]
[BlackElo "2286"]
[TimeControl "180+1"]
[EndTime "12:09:57 PDT"]
[Termination "Game drawn - insufficient material"]

1. d4 {[%clk 0:03:00.9]} 1... Nf6 {[%clk 0:02:59.5]} 2. Nf3 {[%clk 0:03:01.1]}
2... g6 {[%clk 0:02:57.7]} 3. Bg5 {[%clk 0:03:01.4]} 3... Bg7 {[%clk 0:02:57.2]}
4. Nbd2 {[%clk 0:03:00.9]} 4... d5 {[%clk 0:02:54.4]} 5. e3 {[%clk 0:02:58.8]}
5... O-O {[%clk 0:02:54.3]} 6. Be2 {[%clk 0:02:59.1]} 6... Bg4 {[%clk
0:02:49.9]} 7. h3 {[%clk 0:02:57.7]} 7... Bxf3 {[%clk 0:02:49.5]} 8. Bxf3 {[%clk
0:02:57.9]} 8... c6 {[%clk 0:02:48.9]} 9. O-O {[%clk 0:02:57.6]} 9... Nbd7
{[%clk 0:02:48.4]} 10. c4 {[%clk 0:02:57.8]} 10... e6 {[%clk 0:02:47.8]} 11. Qb3
{[%clk 0:02:56.5]} 11... Qb6 {[%clk 0:02:46.4]} 12. c5 {[%clk 0:02:56.9]} 12...
Qxb3 {[%clk 0:02:46]} 13. axb3 {[%clk 0:02:57.5]} 13... a6 {[%clk 0:02:45.6]}
14. b4 {[%clk 0:02:57.9]} 14... e5 {[%clk 0:02:44.3]} 15. Nb3 {[%clk 0:02:54.9]}
15... Rfe8 {[%clk 0:02:32.5]} 16. Na5 {[%clk 0:02:50.6]} 16... Rab8 {[%clk
0:02:32.6]} 17. Rfe1 {[%clk 0:02:44.6]} 17... h6 {[%clk 0:01:44.4]} 18. Bh4
{[%clk 0:02:41.7]} 18... g5 {[%clk 0:01:44.6]} 19. Bg3 {[%clk 0:02:40.2]} 19...
Ne4 {[%clk 0:01:36.7]} 20. Bg4 {[%clk 0:01:48.1]} 20... Re7 {[%clk 0:01:31.6]}
21. Bxd7 {[%clk 0:01:36.7]} 21... Rxd7 {[%clk 0:01:29.4]} 22. Bxe5 {[%clk
0:01:34.3]} 22... Bxe5 {[%clk 0:01:28.6]} 23. dxe5 {[%clk 0:01:35.2]} 23... Re7
{[%clk 0:01:21.5]} 24. f4 {[%clk 0:01:32.7]} 24... Kg7 {[%clk 0:01:20.1]} 25.
Nb3 {[%clk 0:01:21.7]} 25... f5 {[%clk 0:01:03.6]} 26. exf6+ {[%clk 0:00:58.7]}
26... Nxf6 {[%clk 0:01:01.7]} 27. Nd4 {[%clk 0:00:58.5]} 27... Kg6 {[%clk
0:01:00.7]} 28. fxg5 {[%clk 0:00:49]} 28... hxg5 {[%clk 0:00:59.4]} 29. Re2
{[%clk 0:00:44.8]} 29... Rbe8 {[%clk 0:00:58.7]} 30. Rae1 {[%clk 0:00:45.4]}
30... Ne4 {[%clk 0:00:55.3]} 31. Kh2 {[%clk 0:00:43.5]} 31... Rf8 {[%clk
0:00:50]} 32. g4 {[%clk 0:00:40.9]} 32... Rf2+ {[%clk 0:00:35.1]} 33. Rxf2
{[%clk 0:00:35.8]} 33... Nxf2 {[%clk 0:00:34.8]} 34. Nf5 {[%clk 0:00:34.2]}
34... Rh7 {[%clk 0:00:30.4]} 35. Kg3 {[%clk 0:00:29.8]} 35... Nd3 {[%clk
0:00:27.6]} 36. Rf1 {[%clk 0:00:26.6]} 36... Nxb4 {[%clk 0:00:26.2]} 37. Nd6
{[%clk 0:00:27.2]} 37... Re7 {[%clk 0:00:20.4]} 38. Rf3 {[%clk 0:00:19.2]} 38...
Nd3 {[%clk 0:00:19.9]} 39. Nf5 {[%clk 0:00:17.6]} 39... Rd7 {[%clk 0:00:18.7]}
40. h4 {[%clk 0:00:18.1]} 40... gxh4+ {[%clk 0:00:17.8]} 41. Nxh4+ {[%clk
0:00:19]} 41... Kh7 {[%clk 0:00:17.2]} 42. g5 {[%clk 0:00:18.8]} 42... Nxc5
{[%clk 0:00:17.2]} 43. g6+ {[%clk 0:00:19.2]} 43... Kg8 {[%clk 0:00:16.7]} 44.
Kg4 {[%clk 0:00:17.9]} 44... Ne4 {[%clk 0:00:16.8]} 45. Kh5 {[%clk 0:00:17.2]}
45... c5 {[%clk 0:00:16.2]} 46. Nf5 {[%clk 0:00:17.5]} 46... d4 {[%clk
0:00:15.9]} 47. Nh6+ {[%clk 0:00:18.1]} 47... Kg7 {[%clk 0:00:15.7]} 48. Nf5+
{[%clk 0:00:17.9]} 48... Kg8 {[%clk 0:00:16]} 49. exd4 {[%clk 0:00:16.1]} 49...
cxd4 {[%clk 0:00:15.9]} 50. Rd3 {[%clk 0:00:14.6]} 50... b5 {[%clk 0:00:13.8]}
51. Nh6+ {[%clk 0:00:10.5]} 51... Kg7 {[%clk 0:00:13.7]} 52. Nf5+ {[%clk
0:00:11.1]} 52... Kf6 {[%clk 0:00:12.9]} 53. Rxd4 {[%clk 0:00:09.7]} 53... Rxd4
{[%clk 0:00:06.7]} 54. Nxd4 {[%clk 0:00:10.6]} 54... Ng3+ {[%clk 0:00:06]} 55.
Kg4 {[%clk 0:00:09.7]} 55... Ne4 {[%clk 0:00:05.9]} 56. Kf4 {[%clk 0:00:09.9]}
56... Nc5 {[%clk 0:00:05.1]} 57. Ke3 {[%clk 0:00:06]} 57... Na4 {[%clk 0:00:05]}
58. Nc6 {[%clk 0:00:06.9]} 58... Nxb2 {[%clk 0:00:04.6]} 59. Kd4 {[%clk
0:00:05.8]} 59... Kxg6 {[%clk 0:00:04.2]} 60. Kc3 {[%clk 0:00:04.4]} 60... Nc4
{[%clk 0:00:04.1]} 61. Kb4 {[%clk 0:00:04.2]} 61... Kf6 {[%clk 0:00:04]} 62. Nb8
{[%clk 0:00:04.7]} 62... a5+ {[%clk 0:00:03.9]} 63. Kxb5 {[%clk 0:00:04.8]}
63... a4 {[%clk 0:00:02.9]} 64. Kxc4 {[%clk 0:00:04.9]} 64... a3 {[%clk
0:00:02.4]} 65. Kb3 {[%clk 0:00:05.2]} 65... a2 {[%clk 0:00:03.3]} 66. Kxa2
{[%clk 0:00:05.7]} 1/2-1/2

[Event "*** Titled Tuesday Blitz"]
[Site "Chess.com"]
[Date "2021.03.30"]
[Round "11"]
[White "seorobert1971"]
[Black "Skat2704"]
[Result "1/2-1/2"]
[WhiteElo "2740"]
[BlackElo "2633"]
[TimeControl "180+1"]
[EndTime "12:09:59 PDT"]
[Termination "Game drawn - insufficient material"]

1. Nf3 {[%clk 0:03:00.9]} 1... d5 {[%clk 0:02:58]} 2. d4 {[%clk 0:03:01.8]} 2...
Nf6 {[%clk 0:02:53.1]} 3. c4 {[%clk 0:03:02.7]} 3... e6 {[%clk 0:02:51.3]} 4.
Nc3 {[%clk 0:03:03.6]} 4... Be7 {[%clk 0:02:49.8]} 5. Bf4 {[%clk 0:03:03.2]}
5... O-O {[%clk 0:02:47.9]} 6. e3 {[%clk 0:03:03.2]} 6... b6 {[%clk 0:02:47.9]}
7. cxd5 {[%clk 0:03:01.7]} 7... exd5 {[%clk 0:02:48.7]} 8. Bd3 {[%clk
0:03:00.5]} 8... Bb7 {[%clk 0:02:47.6]} 9. O-O {[%clk 0:03:00.2]} 9... c5 {[%clk
0:02:46.3]} 10. h3 {[%clk 0:02:59.3]} 10... Nc6 {[%clk 0:02:44.1]} 11. Rc1
{[%clk 0:02:54.3]} 11... a6 {[%clk 0:02:41.9]} 12. Bb1 {[%clk 0:02:51.1]} 12...
c4 {[%clk 0:02:39.9]} 13. Ne5 {[%clk 0:02:50.8]} 13... b5 {[%clk 0:02:37.8]} 14.
Bg5 {[%clk 0:02:47.9]} 14... Ne4 {[%clk 0:02:28.3]} 15. Bxe4 {[%clk 0:02:34]}
15... dxe4 {[%clk 0:02:25.5]} 16. Bxe7 {[%clk 0:02:33]} 16... Qxe7 {[%clk
0:02:23]} 17. Nxc6 {[%clk 0:02:33]} 17... Bxc6 {[%clk 0:02:22.6]} 18. Qg4 {[%clk
0:02:32.6]} 18... f5 {[%clk 0:02:19.5]} 19. Qg3 {[%clk 0:02:32.4]} 19... b4
{[%clk 0:02:17]} 20. Ne2 {[%clk 0:02:30.4]} 20... Bb5 {[%clk 0:02:14.8]} 21.
Rfe1 {[%clk 0:02:28.4]} 21... Rac8 {[%clk 0:02:09.8]} 22. h4 {[%clk 0:02:10.3]}
22... c3 {[%clk 0:02:03.4]} 23. bxc3 {[%clk 0:02:09.7]} 23... Bxe2 {[%clk
0:02:02.7]} 24. Rxe2 {[%clk 0:02:09.6]} 24... bxc3 {[%clk 0:01:58.8]} 25. Rec2
{[%clk 0:02:05.8]} 25... Qb4 {[%clk 0:01:51.1]} 26. Qe5 {[%clk 0:02:03.4]} 26...
Rf6 {[%clk 0:01:48]} 27. d5 {[%clk 0:02:00.8]} 27... Qd6 {[%clk 0:01:35.9]} 28.
Qd4 {[%clk 0:01:51.9]} 28... Rd8 {[%clk 0:01:33.2]} 29. Rd1 {[%clk 0:01:50.3]}
29... Rh6 {[%clk 0:01:30.2]} 30. g3 {[%clk 0:01:49.1]} 30... Qe7 {[%clk
0:01:26.8]} 31. Qxc3 {[%clk 0:01:44]} 31... g5 {[%clk 0:01:22.7]} 32. d6 {[%clk
0:01:32.4]} 32... Rhxd6 {[%clk 0:01:19.8]} 33. Rxd6 {[%clk 0:01:31.9]} 33...
Rxd6 {[%clk 0:01:14.6]} 34. hxg5 {[%clk 0:01:31.8]} 34... Kf7 {[%clk 0:01:10.6]}
35. Qh8 {[%clk 0:01:28.3]} 35... Kg6 {[%clk 0:01:07.9]} 36. Rc8 {[%clk
0:01:22.3]} 36... Kh5 {[%clk 0:01:02.5]} 37. Rg8 {[%clk 0:01:15.9]} 37... Rg6
{[%clk 0:00:54.7]} 38. Re8 {[%clk 0:01:10.7]} 38... Qg7 {[%clk 0:00:48.6]} 39.
Qxg7 {[%clk 0:01:06.5]} 39... Rxg7 {[%clk 0:00:49.5]} 40. Ra8 {[%clk 0:00:56.9]}
40... Rg6 {[%clk 0:00:48.6]} 41. Ra7 {[%clk 0:00:56.4]} 41... Kxg5 {[%clk
0:00:47]} 42. Rxh7 {[%clk 0:00:55.9]} 42... Rd6 {[%clk 0:00:46.5]} 43. Ra7
{[%clk 0:00:53]} 43... Kh5 {[%clk 0:00:43.9]} 44. Kg2 {[%clk 0:00:52.7]} 44...
Kg5 {[%clk 0:00:43.5]} 45. a4 {[%clk 0:00:52.3]} 45... Kh5 {[%clk 0:00:41.2]}
46. Kf1 {[%clk 0:00:50.4]} 46... Kg5 {[%clk 0:00:40.2]} 47. Ke2 {[%clk
0:00:49.8]} 47... Kh5 {[%clk 0:00:39.4]} 48. Rc7 {[%clk 0:00:45]} 48... Rb6
{[%clk 0:00:36.8]} 49. Rf7 {[%clk 0:00:34]} 49... Kg4 {[%clk 0:00:34.5]} 50.
Rg7+ {[%clk 0:00:33.1]} 50... Kh3 {[%clk 0:00:33.3]} 51. Rg5 {[%clk 0:00:31.2]}
51... Rb2+ {[%clk 0:00:31.1]} 52. Ke1 {[%clk 0:00:30.1]} 52... Rb1+ {[%clk
0:00:29.4]} 53. Ke2 {[%clk 0:00:28.7]} 53... Rb2+ {[%clk 0:00:29.6]} 54. Ke1
{[%clk 0:00:28.1]} 54... Rb1+ {[%clk 0:00:29.9]} 55. Kd2 {[%clk 0:00:27]} 55...
Rb2+ {[%clk 0:00:28.7]} 56. Kc3 {[%clk 0:00:22.4]} 56... Rxf2 {[%clk 0:00:27.3]}
57. Kd4 {[%clk 0:00:22.3]} 57... Kg2 {[%clk 0:00:25]} 58. Rg6 {[%clk 0:00:19.1]}
58... Rd2+ {[%clk 0:00:23.2]} 59. Ke5 {[%clk 0:00:18.8]} 59... Kf3 {[%clk
0:00:21.7]} 60. Rxa6 {[%clk 0:00:17.4]} 60... Kxe3 {[%clk 0:00:19.6]} 61. Kxf5
{[%clk 0:00:17.5]} 61... Kf3 {[%clk 0:00:19.8]} 62. g4 {[%clk 0:00:17]} 62... e3
{[%clk 0:00:20.1]} 63. g5 {[%clk 0:00:15]} 63... e2 {[%clk 0:00:20.3]} 64. Re6
{[%clk 0:00:15]} 64... Rd3 {[%clk 0:00:20.6]} 65. Rxe2 {[%clk 0:00:14]} 65...
Kxe2 {[%clk 0:00:20.8]} 66. g6 {[%clk 0:00:14]} 66... Rf3+ {[%clk 0:00:20.9]}
67. Ke6 {[%clk 0:00:13.8]} 67... Rg3 {[%clk 0:00:20.9]} 68. Kf7 {[%clk
0:00:13.5]} 68... Kd3 {[%clk 0:00:21.5]} 69. g7 {[%clk 0:00:13.2]} 69... Kc4
{[%clk 0:00:21.2]} 70. g8=Q {[%clk 0:00:12.3]} 70... Rxg8 {[%clk 0:00:21.1]} 71.
Kxg8 {[%clk 0:00:12.1]} 71... Kb4 {[%clk 0:00:21.7]} 72. Kf7 {[%clk 0:00:10.9]}
72... Kxa4 {[%clk 0:00:21.8]} 1/2-1/2

[Event "*** Titled Tuesday Blitz"]
[Site "Chess.com"]
[Date "2021.03.30"]
[Round "11"]
[White "anon219"]
[Black "CSB7"]
[Result "1/2-1/2"]
[WhiteElo "2852"]
[BlackElo "2696"]
[TimeControl "180+1"]
[EndTime "12:10:02 PDT"]
[Termination "Game drawn - insufficient material"]

1. e4 {[%clk 0:03:00.9]} 1... e6 {[%clk 0:02:59.6]} 2. d4 {[%clk 0:02:55.3]}
2... d5 {[%clk 0:02:59.8]} 3. Nc3 {[%clk 0:02:55.3]} 3... Nf6 {[%clk 0:02:59.3]}
4. e5 {[%clk 0:02:55.7]} 4... Nfd7 {[%clk 0:02:59.1]} 5. Nce2 {[%clk 0:02:56.3]}
5... c5 {[%clk 0:02:52.4]} 6. c3 {[%clk 0:02:56.7]} 6... Nc6 {[%clk 0:02:51.9]}
7. Nf3 {[%clk 0:02:56]} 7... Be7 {[%clk 0:02:46.6]} 8. a3 {[%clk 0:02:55.3]}
8... O-O {[%clk 0:02:37.4]} 9. Nf4 {[%clk 0:02:54.7]} 9... Qa5 {[%clk
0:02:21.6]} 10. Be3 {[%clk 0:02:52.8]} 10... cxd4 {[%clk 0:01:38.2]} 11. b4
{[%clk 0:02:51.1]} 11... Qc7 {[%clk 0:01:29]} 12. cxd4 {[%clk 0:02:48.1]} 12...
Nb6 {[%clk 0:01:25.5]} 13. Rc1 {[%clk 0:02:46.7]} 13... Qd8 {[%clk 0:01:19]} 14.
Bd3 {[%clk 0:02:44.8]} 14... f6 {[%clk 0:00:34.3]} 15. h4 {[%clk 0:02:21.5]}
15... f5 {[%clk 0:00:34.5]} 16. h5 {[%clk 0:02:18.8]} 16... Bd7 {[%clk
0:00:21.8]} 17. Qd2 {[%clk 0:02:05.3]} 17... a5 {[%clk 0:00:16.7]} 18. b5 {[%clk
0:01:46.1]} 18... Bxa3 {[%clk 0:00:16.7]} 19. bxc6 {[%clk 0:01:43.6]} 19... Bb4
{[%clk 0:00:17]} 20. Rc3 {[%clk 0:01:41.1]} 20... Na4 {[%clk 0:00:17.1]} 21. Ne2
{[%clk 0:01:39]} 21... Rc8 {[%clk 0:00:12.8]} 22. cxd7 {[%clk 0:01:27.1]} 22...
Qxd7 {[%clk 0:00:04.6]} 23. O-O {[%clk 0:01:27.3]} 23... Nxc3 {[%clk 0:00:03.8]}
24. Nxc3 {[%clk 0:01:25]} 24... Bxc3 {[%clk 0:00:04.2]} 25. Qe2 {[%clk
0:01:23.7]} 25... Ra8 {[%clk 0:00:02.2]} 26. Bb5 {[%clk 0:01:23.3]} 26... Qe7
{[%clk 0:00:02.7]} 27. Rc1 {[%clk 0:01:23.1]} 27... Rfc8 {[%clk 0:00:02.3]} 28.
h6 {[%clk 0:01:22.5]} 28... Bb4 {[%clk 0:00:02.3]} 29. Ra1 {[%clk 0:01:19.2]}
29... g6 {[%clk 0:00:02]} 30. Bg5 {[%clk 0:01:17.6]} 30... Qc7 {[%clk
0:00:02.5]} 31. g3 {[%clk 0:01:07.6]} 31... Qc3 {[%clk 0:00:02.3]} 32. Rf1
{[%clk 0:01:03.9]} 32... Qc7 {[%clk 0:00:02.2]} 33. Ba4 {[%clk 0:01:01]} 33...
Be7 {[%clk 0:00:02.3]} 34. Bf6 {[%clk 0:00:59]} 34... Bf8 {[%clk 0:00:01.9]} 35.
Ng5 {[%clk 0:00:57.7]} 35... Qb6 {[%clk 0:00:01.8]} 36. Bd7 {[%clk 0:00:53.4]}
36... Re8 {[%clk 0:00:02.3]} 37. Bxe8 {[%clk 0:00:42.3]} 37... Rxe8 {[%clk
0:00:03.2]} 38. Qc2 {[%clk 0:00:39.9]} 38... Bxh6 {[%clk 0:00:03.4]} 39. Rb1
{[%clk 0:00:40.6]} 39... Qc6 {[%clk 0:00:03.9]} 40. Qb2 {[%clk 0:00:40]} 40...
Bxg5 {[%clk 0:00:03.6]} 41. Bxg5 {[%clk 0:00:39.9]} 41... Rb8 {[%clk 0:00:04.1]}
42. Rc1 {[%clk 0:00:39.9]} 42... Qd7 {[%clk 0:00:03.8]} 43. Qb6 {[%clk
0:00:39.6]} 43... Rc8 {[%clk 0:00:04.3]} 44. Rxc8+ {[%clk 0:00:39.3]} 44... Qxc8
{[%clk 0:00:05.2]} 45. Qxa5 {[%clk 0:00:40]} 45... Kf7 {[%clk 0:00:02.9]} 46.
Qd8 {[%clk 0:00:35.2]} 46... Qxd8 {[%clk 0:00:02.3]} 47. Bxd8 {[%clk 0:00:36.1]}
47... Ke8 {[%clk 0:00:02.2]} 48. Ba5 {[%clk 0:00:32.6]} 48... Kd7 {[%clk
0:00:02.6]} 49. Kf1 {[%clk 0:00:33.1]} 49... Kc6 {[%clk 0:00:03]} 50. Ke2 {[%clk
0:00:33.3]} 50... Kb5 {[%clk 0:00:03.5]} 51. Bd8 {[%clk 0:00:16.9]} 51... Kc4
{[%clk 0:00:03.7]} 52. Bb6 {[%clk 0:00:16.9]} 52... Kb5 {[%clk 0:00:03.7]} 53.
Ba7 {[%clk 0:00:17.5]} 53... Kc4 {[%clk 0:00:04.1]} 54. Kd2 {[%clk 0:00:17.6]}
54... b5 {[%clk 0:00:03.5]} 55. Kc2 {[%clk 0:00:18]} 55... g5 {[%clk 0:00:03.1]}
56. Bc5 {[%clk 0:00:16.8]} 56... h5 {[%clk 0:00:03]} 57. Be7 {[%clk 0:00:15.4]}
57... h4 {[%clk 0:00:03.3]} 58. gxh4 {[%clk 0:00:15.3]} 58... gxh4 {[%clk
0:00:04.2]} 59. Bxh4 {[%clk 0:00:15]} 59... Kxd4 {[%clk 0:00:04.6]} 60. Bf6
{[%clk 0:00:13.1]} 60... Ke4 {[%clk 0:00:04.6]} 61. Kc3 {[%clk 0:00:13.2]} 61...
Kf3 {[%clk 0:00:04.2]} 62. Bh4 {[%clk 0:00:12.5]} 62... Ke4 {[%clk 0:00:02.9]}
63. Kb4 {[%clk 0:00:04.2]} 63... Kxe5 {[%clk 0:00:02.5]} 64. Kxb5 {[%clk
0:00:04.7]} 64... Ke4 {[%clk 0:00:02.4]} 65. Kc5 {[%clk 0:00:04.7]} 65... e5
{[%clk 0:00:02.5]} 66. Bg5 {[%clk 0:00:04.8]} 66... d4 {[%clk 0:00:02.5]} 67.
Kc4 {[%clk 0:00:05.2]} 67... f4 {[%clk 0:00:02.7]} 68. Bf6 {[%clk 0:00:05.7]}
68... Kf3 {[%clk 0:00:02.9]} 69. Bxe5 {[%clk 0:00:06]} 69... Kxf2 {[%clk
0:00:03.3]} 70. Bxf4 {[%clk 0:00:06.3]} 70... d3 {[%clk 0:00:03.2]} 71. Kxd3
{[%clk 0:00:06.8]} 1/2-1/2

[Event "*** Titled Tuesday Blitz"]
[Site "Chess.com"]
[Date "2021.03.30"]
[Round "11"]
[White "suneebaker"]
[Black "Sjakkerntobi"]
[Result "1-0"]
[WhiteElo "2179"]
[BlackElo "2396"]
[TimeControl "180+1"]
[EndTime "12:10:05 PDT"]
[Termination "suneebaker won by checkmate"]

1. Nf3 {[%clk 0:03:00.9]} 1... d5 {[%clk 0:02:59.4]} 2. d4 {[%clk 0:03:00]} 2...
Nf6 {[%clk 0:02:58.5]} 3. c4 {[%clk 0:02:59.6]} 3... e6 {[%clk 0:02:53.5]} 4.
Nc3 {[%clk 0:02:59]} 4... Be7 {[%clk 0:02:47.7]} 5. Bg5 {[%clk 0:02:58.4]} 5...
h6 {[%clk 0:02:42.6]} 6. Bf4 {[%clk 0:02:58]} 6... O-O {[%clk 0:02:41.8]} 7. e3
{[%clk 0:02:57.7]} 7... c5 {[%clk 0:02:41.7]} 8. dxc5 {[%clk 0:02:53.3]} 8...
Bxc5 {[%clk 0:02:39.1]} 9. cxd5 {[%clk 0:02:51.7]} 9... exd5 {[%clk 0:02:38]}
10. Be2 {[%clk 0:02:50.2]} 10... Nc6 {[%clk 0:02:37.5]} 11. O-O {[%clk
0:02:48.4]} 11... a6 {[%clk 0:02:37.1]} 12. Rc1 {[%clk 0:02:41.9]} 12... Ba7
{[%clk 0:02:35.4]} 13. h3 {[%clk 0:02:38.5]} 13... Re8 {[%clk 0:02:27]} 14. a3
{[%clk 0:02:23]} 14... Bf5 {[%clk 0:02:15.8]} 15. Bd3 {[%clk 0:02:12]} 15... Ne4
{[%clk 0:02:04.2]} 16. Bxe4 {[%clk 0:02:01.5]} 16... dxe4 {[%clk 0:02:05.1]} 17.
Nd2 {[%clk 0:01:59.7]} 17... Ne5 {[%clk 0:01:51.9]} 18. Bxe5 {[%clk 0:01:56.3]}
18... Rxe5 {[%clk 0:01:51.5]} 19. Nc4 {[%clk 0:01:49.7]} 19... Re7 {[%clk
0:01:27]} 20. Qxd8+ {[%clk 0:01:48]} 20... Rxd8 {[%clk 0:01:26.5]} 21. Rfd1
{[%clk 0:01:45.4]} 21... Red7 {[%clk 0:01:21.3]} 22. Rxd7 {[%clk 0:01:44.4]}
22... Rxd7 {[%clk 0:01:22.2]} 23. Rd1 {[%clk 0:01:39.7]} 23... Rxd1+ {[%clk
0:01:06.2]} 24. Nxd1 {[%clk 0:01:39]} 24... Bd7 {[%clk 0:01:07.1]} 25. Nc3
{[%clk 0:01:31]} 25... f5 {[%clk 0:01:05.1]} 26. Kf1 {[%clk 0:01:15.8]} 26... b5
{[%clk 0:01:01.6]} 27. Ne5 {[%clk 0:01:12.9]} 27... Be8 {[%clk 0:00:56.4]} 28.
Ke2 {[%clk 0:01:00.2]} 28... Bb8 {[%clk 0:00:55.7]} 29. f4 {[%clk 0:00:59.8]}
29... exf3+ {[%clk 0:00:43.6]} 30. Nxf3 {[%clk 0:00:59.3]} 30... Kf7 {[%clk
0:00:42.2]} 31. e4 {[%clk 0:00:52.5]} 31... fxe4 {[%clk 0:00:38.3]} 32. Nxe4
{[%clk 0:00:52]} 32... a5 {[%clk 0:00:32.3]} 33. Nd4 {[%clk 0:00:46.9]} 33...
Ba7 {[%clk 0:00:29.4]} 34. Kd3 {[%clk 0:00:42.9]} 34... Ke7 {[%clk 0:00:26.6]}
35. b4 {[%clk 0:00:40.3]} 35... axb4 {[%clk 0:00:25.6]} 36. axb4 {[%clk
0:00:40.1]} 36... Bb8 {[%clk 0:00:18.4]} 37. Nc3 {[%clk 0:00:33]} 37... Bd6
{[%clk 0:00:16]} 38. Ndxb5 {[%clk 0:00:30.1]} 38... Bxb4 {[%clk 0:00:14.9]} 39.
Nd5+ {[%clk 0:00:28.2]} 39... Kf7 {[%clk 0:00:13.5]} 40. Nxb4 {[%clk 0:00:27.6]}
40... Bxb5+ {[%clk 0:00:14.2]} 41. Ke3 {[%clk 0:00:27.9]} 41... Kg6 {[%clk
0:00:14.1]} 42. Kf2 {[%clk 0:00:27.7]} 42... Bc4 {[%clk 0:00:13.4]} 43. Nc2
{[%clk 0:00:23.6]} 43... Kf5 {[%clk 0:00:13.9]} 44. Ne3+ {[%clk 0:00:23.5]}
44... Ke4 {[%clk 0:00:14.2]} 45. Nxc4 {[%clk 0:00:23.9]} 45... Kd4 {[%clk
0:00:15.1]} 46. Nd6 {[%clk 0:00:23.8]} 46... Ke5 {[%clk 0:00:14.4]} 47. Nc4+
{[%clk 0:00:21.5]} 47... Kd4 {[%clk 0:00:14.8]} 48. Ne3 {[%clk 0:00:21.8]} 48...
Ke4 {[%clk 0:00:15.1]} 49. g3 {[%clk 0:00:19.3]} 49... g6 {[%clk 0:00:14.3]} 50.
Ng2 {[%clk 0:00:18.6]} 50... g5 {[%clk 0:00:13.4]} 51. g4 {[%clk 0:00:17.8]}
51... Kd4 {[%clk 0:00:13.8]} 52. Kg3 {[%clk 0:00:17.8]} 52... Ke4 {[%clk
0:00:13.8]} 53. Ne1 {[%clk 0:00:17.9]} 53... Ke3 {[%clk 0:00:12]} 54. Nf3 {[%clk
0:00:18.2]} 54... Ke4 {[%clk 0:00:12]} 55. h4 {[%clk 0:00:16.9]} 55... gxh4+
{[%clk 0:00:12.9]} 56. Nxh4 {[%clk 0:00:16.7]} 56... Ke5 {[%clk 0:00:12.3]} 57.
Nf3+ {[%clk 0:00:16.5]} 57... Kf6 {[%clk 0:00:12.5]} 58. Kh4 {[%clk 0:00:16.9]}
58... Kg6 {[%clk 0:00:13]} 59. Nh2 {[%clk 0:00:15]} 59... Kf6 {[%clk 0:00:12.2]}
60. Kh5 {[%clk 0:00:15]} 60... Kg7 {[%clk 0:00:12.5]} 61. Nf3 {[%clk 0:00:15.3]}
61... Kh7 {[%clk 0:00:12.9]} 62. Nh4 {[%clk 0:00:15.6]} 62... Kg7 {[%clk
0:00:13.8]} 63. Nf5+ {[%clk 0:00:15.7]} 63... Kg8 {[%clk 0:00:13.9]} 64. Nxh6+
{[%clk 0:00:16]} 64... Kh8 {[%clk 0:00:14.5]} 65. Nf5 {[%clk 0:00:15.9]} 65...
Kh7 {[%clk 0:00:15.4]} 66. g5 {[%clk 0:00:15.9]} 66... Kg8 {[%clk 0:00:16.3]}
67. g6 {[%clk 0:00:15.7]} 67... Kh8 {[%clk 0:00:16.3]} 68. Kh6 {[%clk
0:00:15.1]} 68... Kg8 {[%clk 0:00:17.2]} 69. Ne7+ {[%clk 0:00:14.5]} 69... Kf8
{[%clk 0:00:18.1]} 70. g7+ {[%clk 0:00:14.7]} 70... Kxe7 {[%clk 0:00:19]} 71.
g8=Q {[%clk 0:00:14.7]} 71... Kd6 {[%clk 0:00:19]} 72. Qe8 {[%clk 0:00:14.3]}
72... Kd5 {[%clk 0:00:18.8]} 73. Kg5 {[%clk 0:00:14.6]} 73... Kd4 {[%clk
0:00:19.7]} 74. Kf4 {[%clk 0:00:14.3]} 74... Kc4 {[%clk 0:00:20.6]} 75. Qd7
{[%clk 0:00:13.7]} 75... Kc5 {[%clk 0:00:21.5]} 76. Ke4 {[%clk 0:00:13]} 76...
Kb4 {[%clk 0:00:21.5]} 77. Qc6 {[%clk 0:00:13]} 77... Kb3 {[%clk 0:00:20.4]} 78.
Kd3 {[%clk 0:00:12.8]} 78... Kb4 {[%clk 0:00:18.3]} 79. Qb6+ {[%clk 0:00:12.7]}
79... Ka3 {[%clk 0:00:16.9]} 80. Kc3 {[%clk 0:00:12.3]} 80... Ka4 {[%clk
0:00:17.8]} 81. Qb4# {[%clk 0:00:12]} 1-0